bitfinex-derivatives/quotes_BTCF0:USTF0_20250809
["timestamp","ask_amount","ask_price","bid_price","bid_amount"]
[1754717482284,0.54933931,117080.0,117070.0,0.1159327]
[1754717482492,0.80961877,117080.0,117070.0,0.1159327]
[1754717482886,1.06989823,117080.0,117070.0,0.1159327]
[1754717483192,0.80961877,117080.0,117070.0,0.1159327]
[1754717483389,1.06989823,117080.0,117070.0,0.007]
[1754717483596,1.59688783,117080.0,117070.0,0.007]
[1754717484790,1.33660837,117080.0,117070.0,0.007]
[1754717485091,1.59688783,117080.0,117070.0,0.007]
[1754717485287,1.59688783,117080.0,117070.0,0.004]
[1754717485495,1.59688783,117080.0,117070.0,0.002]
[1754717485886,1.33660837,117080.0,117070.0,0.002]
[1754717486794,1.51038921,117080.0,117070.0,0.002]
[1754717487493,0.81604945,117080.0,117070.0,0.002]
[1754717487696,1.51038921,117080.0,117070.0,0.002]
[1754717489585,1.33955721,117080.0,117070.0,0.002]
[1754717492102,0.99238733,117080.0,117070.0,0.002]
[1754717493592,0.99238733,117080.0,117070.0,0.02552]
[1754717494800,0.64521745,117080.0,117070.0,0.02552]
[1754717494997,0.99238733,117080.0,117070.0,0.02552]
[1754717495599,0.64521745,117080.0,117070.0,0.02552]
[1754717495802,0.99238733,117080.0,117070.0,0.02552]
[1754717496305,0.64521745,117080.0,117070.0,0.02552]
[1754717496495,0.99238733,117080.0,117070.0,0.02552]
[1754717497201,0.99236607,117080.0,117070.0,0.02552]
[1754717498704,0.64519619,117080.0,117070.0,0.02552]
[1754717498905,0.99236607,117080.0,117070.0,0.02552]
[1754717499910,0.64519619,117080.0,117070.0,0.02552]
[1754717500109,0.99236607,117080.0,117070.0,0.02552]
[1754717500705,0.64519619,117080.0,117070.0,0.02552]
[1754717501099,0.99236607,117080.0,117070.0,0.02552]
[1754717501804,1.33953595,117080.0,117070.0,0.02552]
[1754717502008,0.64519619,117080.0,117070.0,0.002]
[1754717502307,1.33953595,117080.0,117070.0,0.002]
[1754717503803,1.34253595,117080.0,117070.0,0.001]
[1754717504607,0.0854124,117070.0,117060.0,0.02395]
[1754717504906,1.6575197,117070.0,117060.0,0.1093697]
[1754717505302,1.74293503,117070.0,117060.0,0.02395]
[1754717505506,1.74293503,117070.0,117060.0,0.1093697]
[1754717505705,0.0854197,117060.0,117050.0,0.02395]
[1754717505910,0.811087,117060.0,117050.0,0.2026571]
[1754717506300,0.89650962,117060.0,117050.0,0.2026571]
[1754717506504,0.6161569,117060.0,117050.0,0.2026571]
[1754717506710,0.96332678,117060.0,117050.0,0.2026571]
[1754717506912,0.8788122,117060.0,117050.0,0.2026571]
[1754717507110,0.54933844,117060.0,117050.0,0.2026571]
[1754717507310,0.89650832,117060.0,117050.0,0.2026571]
[1754717507511,0.54933844,117060.0,117050.0,0.2026571]
[1754717507711,0.89750832,117060.0,117050.0,0.2026571]
[1754717507912,0.55033844,117060.0,117050.0,0.2026571]
[1754717508116,0.89750832,117060.0,117050.0,0.2026571]
[1754717508300,0.55033844,117060.0,117050.0,0.2026571]
[1754717508506,0.89750832,117060.0,117050.0,0.2026571]
[1754717508809,1.39637844,117060.0,117050.0,0.2026571]
[1754717509008,1.91715564,117060.0,117050.0,0.1093771]
[1754717510209,2.00609089,117060.0,117050.0,0.1093771]
[1754717510715,1.48531369,117060.0,117050.0,0.1093771]
[1754717510915,2.00609089,117060.0,117050.0,0.1093771]
[1754717512208,2.07495807,117060.0,117050.0,0.1093771]
[1754717512408,2.08348943,117060.0,117050.0,0.1093771]
[1754717516313,2.06579331,117060.0,117050.0,0.1093771]
[1754717516514,1.21975331,117060.0,117050.0,0.1093771]
[1754717516714,2.06523331,117060.0,117050.0,0.1093771]
[1754717518621,1.54445611,117060.0,117050.0,0.1093771]
[1754717519427,1.54445611,117060.0,117050.0,0.1421171]
[1754717519628,2.06523331,117060.0,117050.0,0.1421171]
[1754717519818,1.54445611,117060.0,117050.0,0.1093771]
[1754717520015,2.06523331,117060.0,117050.0,0.1093771]
[1754717520424,1.54445611,117060.0,117050.0,0.1093771]
[1754717520623,1.56214355,117060.0,117050.0,0.1093771]
[1754717520826,2.08292075,117060.0,117050.0,0.1093771]
[1754717521234,1.56214355,117060.0,117050.0,0.1093771]
[1754717521422,2.06523331,117060.0,117050.0,0.1093771]
[1754717521726,1.54445611,117060.0,117050.0,0.1093771]
[1754717522427,2.08292079,117060.0,117050.0,0.02395]
[1754717522726,1.56214359,117060.0,117050.0,0.02395]
[1754717523025,2.49646661,117060.0,117040.0,0.1559103]
[1754717523324,0.9670037,117050.0,117040.0,0.02395]
[1754717523732,0.0854338,117040.0,117030.0,0.3267958]
[1754717523929,0.9301938,117040.0,117030.0,0.6339344]
[1754717524130,1.1905824,117040.0,117030.0,0.6339344]
[1754717524434,1.53640822,117040.0,117030.0,0.6339344]
[1754717524737,1.01563102,117040.0,117030.0,0.3735458]
[1754717525031,1.36293952,117040.0,117030.0,0.3735458]
[1754717525228,1.36293952,117040.0,117030.0,0.3755458]
[1754717525433,1.01563102,117040.0,117030.0,0.3755458]
[1754717525734,1.01563102,117040.0,117030.0,0.1968272]
[1754717525927,1.36293952,117040.0,117030.0,0.1968272]
[1754717526535,1.82240301,117040.0,117030.0,0.02595]
[1754717526728,1.82240301,117040.0,117030.0,0.002]
[1754717527028,1.84009036,117040.0,117030.0,0.002]
[1754717527622,1.49278186,117040.0,117030.0,0.002]
[1754717527835,0.0854412,117030.0,117020.0,0.1095778]
[1754717528035,0.7935497,117030.0,117020.0,0.1095778]
[1754717528231,0.88476908,117030.0,117020.0,0.1095778]
[1754717528438,0.9702136,117030.0,117020.0,0.1095778]
[1754717528635,0.6229051,117030.0,117020.0,0.1095778]
[1754717528834,0.9702136,117030.0,117020.0,0.1095778]
[1754717529037,0.9722136,117030.0,117020.0,0.1095778]
[1754717530138,0.9722136,117030.0,117020.0,0.1421078]
[1754717530640,1.37944572,117030.0,117020.0,0.5495763]
[1754717530837,1.2940012,117030.0,117020.0,0.2022678]
[1754717531033,1.2940012,117030.0,117020.0,0.5495763]
[1754717531340,1.2940012,117030.0,117020.0,0.2022678]
[1754717532435,1.2940012,117030.0,117020.0,0.5495763]
[1754717533536,1.2940012,117030.0,117020.0,0.2022678]
[1754717534036,0.003,117030.0,117020.0,0.9103763]
[1754717534242,0.003,117030.0,117020.0,0.97554319]
[1754717534542,0.0884411,117030.0,117020.0,0.97134319]
[1754717535042,0.0884411,117030.0,117020.0,0.9103763]
[1754717535444,0.003,117030.0,117020.0,0.9103763]
[1754717536241,0.0884411,117030.0,117020.0,0.9103763]
[1754717536444,0.003,117030.0,117020.0,0.9103763]
[1754717537145,0.0884412,117030.0,117020.0,0.9103763]
[1754717537941,0.003,117030.0,117020.0,0.9103763]
[1754717538544,0.0884412,117030.0,117020.0,0.9103763]
[1754717539247,0.0884412,117030.0,117020.0,0.97134319]
[1754717539649,0.0884412,117030.0,117020.0,0.9103763]
[1754717539849,0.003,117030.0,117020.0,0.5630678]
[1754717540047,0.003,117030.0,117020.0,0.9103763]
[1754717540443,0.003,117030.0,117020.0,0.5630678]
[1754717540645,0.003,117030.0,117020.0,0.9103763]
[1754717540848,0.0884411,117030.0,117020.0,0.9103763]
[1754717541453,0.003,117030.0,117020.0,0.9103763]
[1754717542148,0.0884412,117030.0,117020.0,0.9103763]
[1754717543148,0.003,117030.0,117020.0,0.9103763]
[1754717544146,0.003,117030.0,117020.0,0.5630678]
[1754717544449,0.003,117030.0,117020.0,0.9103763]
[1754717544645,0.003,117030.0,117020.0,0.5630678]
[1754717544844,0.0884411,117030.0,117020.0,0.9103763]
[1754717546044,0.003,117030.0,117020.0,0.9103763]
[1754717546951,0.0884411,117030.0,117020.0,0.9103763]
[1754717547539,0.003,117030.0,117020.0,0.9103763]
[1754717548342,0.003,117030.0,117020.0,0.97134319]
[1754717548949,0.003,117030.0,117020.0,0.62403469]
[1754717549145,0.5316582,117050.0,117040.0,0.2022538]
[1754717549544,0.5316582,117050.0,117040.0,0.5495623]
[1754717550346,0.5316582,117050.0,117040.0,0.2022538]
[1754717550543,0.5316582,117050.0,117040.0,0.5495623]
[1754717550943,0.5346582,117050.0,117040.0,0.5495623]
[1754717551841,0.4492266,117050.0,117040.0,0.2022538]
[1754717552050,0.4492266,117050.0,117040.0,0.5495623]
[1754717552244,0.3638,117050.0,117040.0,0.5495623]
[1754717552450,0.003,117050.0,117040.0,0.5495623]
[1754717553051,0.005,117050.0,117040.0,0.5495623]
[1754717553451,0.0904265,117050.0,117040.0,0.5495623]
[1754717553849,0.005,117050.0,117040.0,0.5495623]
[1754717554552,0.0904265,117050.0,117040.0,0.5495623]
[1754717554945,0.0904265,117050.0,117040.0,0.2022538]
[1754717555347,0.0904265,117050.0,117040.0,0.5495623]
[1754717555948,0.0904265,117050.0,117040.0,0.2022538]
[1754717556155,0.0904265,117050.0,117040.0,0.5495623]
[1754717556551,0.005,117050.0,117040.0,0.5495623]
[1754717556753,0.005,117050.0,117040.0,0.2022538]
[1754717556955,0.005,117050.0,117040.0,0.2631798]
[1754717557148,0.005,117050.0,117040.0,0.9712883]
[1754717557348,0.005,117050.0,117040.0,1.4894688]
[1754717557542,0.0046,117060.0,117050.0,0.552425]
[1754717557747,0.0046,117060.0,117050.0,1.82413338]
[1754717557948,0.0046,117060.0,117050.0,1.763265]
[1754717558255,0.0046,117060.0,117050.0,1.47682488]
[1754717558648,0.09423273,117080.0,117070.0,0.5524104]
[1754717559046,0.09823273,117080.0,117070.0,0.2051019]
[1754717559248,0.10323273,117080.0,117070.0,0.2051019]
[1754717560357,0.12339273,117080.0,117070.0,0.2051019]
[1754717561646,0.09823273,117080.0,117070.0,0.2051019]
[1754717561848,0.11839273,117080.0,117070.0,0.2051019]
[1754717562049,0.12339273,117080.0,117070.0,0.2051019]
[1754717562852,0.11839273,117080.0,117070.0,0.2051019]
[1754717563053,0.12339273,117080.0,117070.0,0.2051019]
[1754717564859,0.12339273,117080.0,117070.0,0.5524104]
[1754717565052,0.09823273,117080.0,117070.0,0.5524104]
[1754717565254,0.0894046,117080.0,117070.0,0.2051019]
[1754717565453,0.0894046,117080.0,117070.0,0.5524104]
[1754717565858,0.0894046,117080.0,117070.0,0.2051019]
[1754717566050,0.0894046,117080.0,117070.0,0.5524104]
[1754717566657,0.0854046,117080.0,117070.0,0.5524104]
[1754717567760,0.09421758,117080.0,117070.0,0.2051019]
[1754717567959,0.09421758,117080.0,117070.0,0.5524104]
[1754717568856,0.0854046,117080.0,117070.0,0.2051019]
[1754717569056,0.0854046,117080.0,117070.0,0.5524104]
[1754717569454,0.4713646,117080.0,117070.0,0.2051019]
[1754717569856,0.8186731,117080.0,117070.0,0.2051019]
[1754717570661,0.4713646,117080.0,117070.0,0.2051019]
[1754717570960,0.8186731,117080.0,117070.0,0.2051019]
[1754717571158,0.8262731,117080.0,117070.0,0.2051019]
[1754717571365,0.83505223,117080.0,117070.0,0.2051019]
[1754717571662,1.77166756,117080.0,117070.0,0.2051019]
[1754717571860,1.77166756,117080.0,117070.0,0.1562519]
[1754717572158,1.77166756,117080.0,117070.0,0.1901419]
[1754717572550,1.77166756,117080.0,117070.0,0.2051019]
[1754717573259,1.42435906,117080.0,117070.0,0.2051019]
[1754717573663,1.77166756,117080.0,117070.0,0.2051019]
[1754717573965,1.76406756,117080.0,117070.0,0.2051019]
[1754717574263,1.41675906,117080.0,117070.0,0.2051019]
[1754717574562,0.54939906,117080.0,117070.0,0.2051019]
[1754717574764,0.4502047,117080.0,117070.0,0.5524104]
[1754717574966,0.0894047,117080.0,117070.0,0.5524104]
[1754717575263,0.4552047,117080.0,117070.0,0.5524104]
[1754717575451,0.4753647,117080.0,117070.0,0.5524104]
[1754717576066,0.4753647,117080.0,117070.0,0.2051019]
[1754717576757,0.8226732,117080.0,117070.0,0.2051019]
[1754717576968,0.8302732,117080.0,117070.0,0.1901419]
[1754717577352,0.83876822,117080.0,117070.0,0.1901419]
[1754717577562,0.83876822,117080.0,117070.0,0.2051019]
[1754717578064,0.49145972,117080.0,117070.0,0.2051019]
[1754717578463,0.83876822,117080.0,117070.0,0.2051019]
[1754717578864,0.83116822,117080.0,117070.0,0.2051019]
[1754717579066,0.8226732,117080.0,117070.0,0.2051019]
[1754717579259,0.4753647,117080.0,117070.0,0.2051019]
[1754717579564,0.4753647,117080.0,117070.0,0.5524104]
[1754717579766,0.4502047,117080.0,117070.0,0.5524104]
[1754717580163,0.4502047,117080.0,117070.0,0.2051019]
[1754717580364,0.4552047,117080.0,117070.0,0.5524104]
[1754717581168,0.4632047,117080.0,117070.0,0.5524104]
[1754717581365,0.49238467,117080.0,117070.0,0.5524104]
[1754717582666,0.0894047,117080.0,117070.0,0.5524104]
[1754717583262,0.0894047,117080.0,117070.0,0.2051019]
[1754717583567,0.0894047,117080.0,117070.0,0.5524104]
[1754717584069,0.004,117080.0,117070.0,1.7581704]
[1754717584369,0.004,117080.0,117070.0,1.81903878]
[1754717586763,0.004,117080.0,117070.0,1.47173028]
[1754717586959,0.004,117080.0,117070.0,1.81903878]
[1754717587163,0.004,117080.0,117070.0,1.47173028]
[1754717587458,0.004,117080.0,117070.0,1.81903878]
[1754717588269,0.004,117080.0,117070.0,1.47173028]
[1754717588464,0.004,117080.0,117070.0,1.81903878]
[1754717588771,0.4703647,117080.0,117070.0,1.11093028]
[1754717588964,0.4753647,117080.0,117070.0,1.0500619]
[1754717589160,0.4753647,117080.0,117070.0,1.3973704]
[1754717589557,0.4753647,117080.0,117070.0,1.0500619]
[1754717589757,0.1145647,117080.0,117070.0,1.3973704]
[1754717589966,0.4753647,117080.0,117070.0,1.3973704]
[1754717590163,0.4753647,117080.0,117070.0,1.0500619]
[1754717590363,0.4753647,117080.0,117070.0,0.2051019]
[1754717590568,0.8302732,117080.0,117070.0,0.2051019]
[1754717590763,0.4829647,117080.0,117070.0,0.2051019]
[1754717590971,0.8302732,117080.0,117070.0,0.2051019]
[1754717591769,0.8226732,117080.0,117070.0,0.2051019]
[1754717592071,0.4753647,117080.0,117070.0,0.2051019]
[1754717595072,0.4753647,117080.0,117070.0,0.2061019]
[1754717595581,0.4753647,117080.0,117070.0,0.2081019]
[1754717596484,0.1145647,117080.0,117070.0,0.2081019]
[1754717596878,0.4753647,117080.0,117070.0,0.2081019]
[1754717597375,0.1145647,117080.0,117070.0,0.2081019]
[1754717597580,0.4753647,117080.0,117070.0,0.5554104]
[1754717597877,0.4753647,117080.0,117070.0,0.2081019]
[1754717598476,0.02916,117080.0,117070.0,0.2081019]
[1754717598683,0.004,117080.0,117070.0,0.2081019]
[1754717598981,0.004,117080.0,117070.0,0.5554104]
[1754717599779,0.0894047,117080.0,117070.0,0.5554104]
[1754717600386,0.004,117080.0,117070.0,0.5554104]
[1754717600682,0.004,117080.0,117070.0,0.2081019]
[1754717600884,0.004,117080.0,117070.0,0.5554104]
[1754717601183,0.0894046,117080.0,117070.0,0.5554104]
[1754717601679,0.1145646,117080.0,117070.0,0.2081019]
[1754717603480,0.1145646,117080.0,117070.0,0.5554104]
[1754717603776,0.1145646,117080.0,117070.0,0.2081019]
[1754717604283,0.1145646,117080.0,117070.0,0.5554104]
[1754717604482,0.1145646,117080.0,117070.0,0.2081019]
[1754717605986,0.1145646,117080.0,117070.0,0.5554104]
[1754717606286,0.1145646,117080.0,117070.0,0.2081019]
[1754717606885,0.4618731,117080.0,117070.0,0.2081019]
[1754717607095,0.1145646,117080.0,117070.0,0.2081019]
[1754717607481,0.1145646,117080.0,117070.0,0.5554104]
[1754717608082,0.004,117080.0,117070.0,0.2081019]
[1754717608287,0.004,117080.0,117070.0,0.5554104]
[1754717608883,0.004,117080.0,117070.0,0.5689019]
[1754717609190,0.004,117080.0,117070.0,0.97707878]
[1754717609998,0.004,117080.0,117070.0,0.62677028]
[1754717610182,0.004,117080.0,117070.0,0.62877028]
[1754717611087,0.004,117080.0,117070.0,0.97607878]
[1754717611493,0.004,117080.0,117070.0,0.62977028]
[1754717611895,0.004,117080.0,117070.0,0.97807878]
[1754717612493,0.004,117080.0,117070.0,0.63077028]
[1754717612792,0.004,117080.0,117070.0,0.97807878]
[1754717613393,0.004,117080.0,117070.0,0.9172104]
[1754717613786,0.004,117080.0,117070.0,0.5699019]
[1754717614092,0.004,117080.0,117070.0,0.9172104]
[1754717615492,0.004,117080.0,117070.0,0.5699019]
[1754717615689,0.004,117080.0,117070.0,0.9172104]
[1754717615893,0.004,117080.0,117070.0,0.5699019]
[1754717616089,0.0894048,117080.0,117070.0,0.2091019]
[1754717616294,0.4502048,117080.0,117070.0,0.2091019]
[1754717616494,0.4502048,117080.0,117070.0,0.5564104]
[1754717616791,0.0894048,117080.0,117070.0,0.5564104]
[1754717617185,0.0894048,117080.0,117070.0,0.2091019]
[1754717617381,0.0894048,117080.0,117070.0,0.5564104]
[1754717617588,0.0894048,117080.0,117070.0,0.2091019]
[1754717617792,0.4502048,117080.0,117070.0,0.2091019]
[1754717618094,0.4502048,117080.0,117070.0,0.5564104]
[1754717618994,0.0894048,117080.0,117070.0,0.5564104]
[1754717619191,0.4502048,117080.0,117070.0,0.2091019]
[1754717619591,0.0894048,117080.0,117070.0,0.2091019]
[1754717619796,0.0894048,117080.0,117070.0,0.5564104]
[1754717620193,0.0894048,117080.0,117070.0,0.2091019]
[1754717620593,0.4502048,117080.0,117070.0,0.2091019]
[1754717620791,0.4552048,117080.0,117070.0,0.2091019]
[1754717620991,0.4552048,117080.0,117070.0,0.5564104]
[1754717621192,0.4552048,117080.0,117070.0,0.2091019]
[1754717621401,0.009,117080.0,117070.0,0.5564104]
[1754717621696,0.3698,117080.0,117070.0,0.2091019]
[1754717621896,0.4552049,117080.0,117070.0,0.2091019]
[1754717622093,0.4552049,117080.0,117070.0,0.5564104]
[1754717622794,0.4552049,117080.0,117070.0,0.2091019]
[1754717623101,0.4552049,117080.0,117070.0,0.5564104]
[1754717623600,0.4552049,117080.0,117070.0,0.61727878]
[1754717623800,0.4552049,117080.0,117070.0,0.26997028]
[1754717624192,0.4552049,117080.0,117070.0,0.61727878]
[1754717624602,0.4552049,117080.0,117070.0,0.26997028]
[1754717624903,0.0944049,117080.0,117070.0,0.61727878]
[1754717625289,0.009,117080.0,117070.0,0.61727878]
[1754717625490,0.009,117080.0,117070.0,0.26997028]
[1754717625700,0.009,117080.0,117070.0,0.61727878]
[1754717625901,0.094405,117080.0,117070.0,0.26997028]
[1754717626097,0.114565,117080.0,117070.0,0.61727878]
[1754717626498,0.114565,117080.0,117070.0,0.26997028]
[1754717626699,0.114565,117080.0,117070.0,0.61727878]
[1754717626900,0.114565,117080.0,117070.0,1.13769028]
[1754717627302,0.4618735,117080.0,117070.0,1.13769028]
[1754717627701,0.114565,117080.0,117070.0,1.13769028]
[1754717628798,0.114565,117080.0,117070.0,0.26997028]
[1754717630099,0.4618735,117080.0,117070.0,0.26997028]
[1754717630299,0.114565,117080.0,117070.0,0.26997028]
[1754717630703,0.110565,117080.0,117070.0,0.26997028]
[1754717630900,0.471365,117080.0,117070.0,0.26997028]
[1754717632009,0.8262735,117080.0,117070.0,0.26997028]
[1754717632703,0.478965,117080.0,117070.0,0.26997028]
[1754717632908,0.8262735,117080.0,117070.0,0.26997028]
[1754717633098,0.471365,117080.0,117070.0,0.26997028]
[1754717637212,0.471365,117080.0,117070.0,0.61727878]
[1754717637615,0.471365,117080.0,117070.0,0.26997028]
[1754717637912,0.8262735,117080.0,117070.0,0.26997028]
[1754717638806,0.8186735,117080.0,117070.0,0.26997028]
[1754717639013,0.56438033,117080.0,117070.0,0.22112028]
[1754717639208,0.91168883,117080.0,117070.0,0.1947819]
[1754717639407,0.91168883,117080.0,117070.0,0.2085319]
[1754717640023,0.56438033,117080.0,117070.0,0.2085319]
[1754717640314,0.91168883,117080.0,117070.0,0.2085319]
[1754717641510,0.56438033,117080.0,117070.0,0.2085319]
[1754717641710,0.91168883,117080.0,117070.0,0.2085319]
[1754717641911,0.56438033,117080.0,117070.0,0.2085319]
[1754717642311,0.91168883,117080.0,117070.0,0.2085319]
[1754717643109,0.56438033,117080.0,117070.0,0.1602519]
[1754717643310,0.91168883,117080.0,117070.0,0.1602519]
[1754717643506,0.91168883,117080.0,117070.0,0.2085319]
[1754717643712,0.56438033,117080.0,117070.0,0.2085319]
[1754717644214,0.91168883,117080.0,117070.0,0.2085319]
[1754717644411,0.91168883,117080.0,117070.0,0.1602519]
[1754717644715,0.91168883,117080.0,117070.0,0.2085319]
[1754717644909,0.56438033,117080.0,117070.0,0.2085319]
[1754717645115,0.91168883,117080.0,117070.0,0.2085319]
[1754717648019,0.56438033,117080.0,117070.0,0.2085319]
[1754717648219,0.91168883,117080.0,117070.0,0.2085319]
[1754717648419,0.91168883,117080.0,117070.0,0.26940028]
[1754717648722,0.56438033,117080.0,117070.0,0.26940028]
[1754717649019,0.91168883,117080.0,117070.0,0.26940028]
[1754717649419,0.56438033,117080.0,117070.0,0.26940028]
[1754717649620,0.91168883,117080.0,117070.0,0.26940028]
[1754717649820,0.56438033,117080.0,117070.0,0.26940028]
[1754717650417,0.91168883,117080.0,117070.0,0.26940028]
[1754717651218,0.56438033,117080.0,117070.0,0.26940028]
[1754717651419,0.91168883,117080.0,117070.0,0.26940028]
[1754717651823,0.56438033,117080.0,117070.0,0.26940028]
[1754717652022,0.91168883,117080.0,117070.0,0.26940028]
[1754717652522,0.56438033,117080.0,117070.0,0.26940028]
[1754717652724,0.91168883,117080.0,117070.0,0.26940028]
[1754717653416,0.56438033,117080.0,117070.0,0.26940028]
[1754717653818,0.91168883,117080.0,117070.0,0.26940028]
[1754717654319,0.56438033,117080.0,117070.0,0.26940028]
[1754717654621,1.08499301,117080.0,117070.0,0.52970662]
[1754717654921,1.08499301,117080.0,117070.0,0.46883824]
[1754717655624,1.08499301,117080.0,117070.0,0.2085319]
[1754717656014,0.56438033,117080.0,117070.0,0.2085319]
[1754717656214,1.08499301,117080.0,117070.0,0.46883824]
[1754717657018,0.56438033,117080.0,117070.0,0.46883824]
[1754717657216,1.08499301,117080.0,117070.0,0.46883824]
[1754717657417,0.56438033,117080.0,117070.0,0.46883824]
[1754717657618,1.08499301,117080.0,117070.0,0.46883824]
[1754717657818,0.56438033,117080.0,117070.0,0.2085319]
[1754717658030,1.08499301,117080.0,117070.0,0.46883824]
[1754717658225,0.56438033,117080.0,117070.0,0.46883824]
[1754717658526,1.08499301,117080.0,117070.0,0.46883824]
[1754717659326,1.08499301,117080.0,117070.0,0.2085319]
[1754717659726,1.08499301,117080.0,117070.0,0.46883824]
[1754717659926,1.08499301,117080.0,117070.0,0.2085319]
[1754717660127,1.08499301,117080.0,117070.0,0.46883824]
[1754717660526,1.08499301,117080.0,117070.0,0.2085319]
[1754717660725,1.08499301,117080.0,117070.0,0.46883824]
[1754717660926,0.56438033,117080.0,117070.0,0.46883824]
[1754717661226,1.08499301,117080.0,117070.0,0.46883824]
[1754717661434,0.56438033,117080.0,117070.0,0.46883824]
[1754717661730,0.82468667,117080.0,117070.0,0.46883824]
[1754717662135,0.56438033,117080.0,117070.0,0.2085319]
[1754717662427,0.56438033,117080.0,117070.0,0.46883824]
[1754717662732,0.82468667,117080.0,117070.0,0.2085319]
[1754717662926,0.82468667,117080.0,117070.0,0.46883824]
[1754717663129,0.82468667,117080.0,117070.0,0.2085319]
[1754717663329,0.82468667,117080.0,117070.0,0.51453873]
[1754717664535,0.82468667,117080.0,117070.0,0.25423239]
[1754717664836,0.82468667,117080.0,117070.0,0.51453873]
[1754717665242,0.56438033,117080.0,117070.0,0.51453873]
[1754717665434,0.82468667,117080.0,117070.0,0.51453873]
[1754717665634,1.08499301,117080.0,117070.0,0.51453873]
[1754717667027,1.08499301,117080.0,117070.0,0.51454414]
[1754717667642,1.08499301,117080.0,117070.0,0.2542378]
[1754717667842,1.08499301,117080.0,117070.0,0.51454414]
[1754717668535,1.08499301,117080.0,117070.0,0.2542378]
[1754717668738,1.08499301,117080.0,117070.0,0.51454414]
[1754717669240,1.08499301,117080.0,117070.0,0.2542378]
[1754717669241,0.56438033,117080.0,117070.0,0.2542378]
[1754717669439,0.82468667,117080.0,117070.0,0.2542378]
[1754717669940,0.82468667,117080.0,117070.0,0.46883824]
[1754717670149,0.56438033,117080.0,117070.0,0.2085319]
[1754717670355,0.82468667,117080.0,117070.0,0.2085319]
[1754717670555,0.82468667,117080.0,117070.0,0.46883824]
[1754717670846,0.56438033,117080.0,117070.0,0.25424191]
[1754717671047,1.08499301,117080.0,117070.0,0.51454825]
[1754717671248,1.08499301,117080.0,117070.0,0.46883824]
[1754717671635,0.56438033,117080.0,117070.0,0.46883824]
[1754717671841,1.08499301,117080.0,117070.0,0.46883824]
[1754717672250,0.56438033,117080.0,117070.0,0.2085319]
[1754717672448,1.08499301,117080.0,117070.0,0.46883824]
[1754717672751,1.07739301,117080.0,117070.0,0.46883824]
[1754717673047,0.81708667,117080.0,117070.0,0.51455041]
[1754717673250,0.55678033,117080.0,117070.0,0.46883824]
[1754717673745,0.3608,117080.0,117070.0,0.52970662]
[1754717674341,0.3658,117080.0,117070.0,0.26940028]
[1754717674541,0.62610634,117080.0,117070.0,0.52970662]
[1754717674947,0.64626634,117080.0,117070.0,0.26940028]
[1754717675443,0.38596,117080.0,117070.0,0.26940028]
[1754717675645,0.38596,117080.0,117070.0,0.52970662]
[1754717675850,0.64626634,117080.0,117070.0,0.52970662]
[1754717676546,0.38596,117080.0,117070.0,0.52970662]
[1754717676752,0.64626634,117080.0,117070.0,0.52970662]
[1754717677653,0.64626634,117080.0,117070.0,0.26940028]
[1754717677855,0.64626634,117080.0,117070.0,0.52970662]
[1754717678658,0.38596,117080.0,117070.0,0.52970662]
[1754717679044,0.64626634,117080.0,117070.0,0.26940028]
[1754717679456,0.64626634,117080.0,117070.0,0.52970662]
[1754717679658,0.38596,117080.0,117070.0,0.52970662]
[1754717679952,0.64626634,117080.0,117070.0,0.52970662]
[1754717683356,0.64626634,117080.0,117070.0,0.26940028]
[1754717683658,0.64626634,117080.0,117070.0,0.52970662]
[1754717683851,0.38596,117080.0,117070.0,0.26940028]
[1754717684155,0.38596,117080.0,117070.0,0.52970662]
[1754717684356,0.64626634,117080.0,117070.0,0.52970662]
[1754717684760,0.38596,117080.0,117070.0,0.52970662]
[1754717685053,0.64626634,117080.0,117070.0,0.26940028]
[1754717685255,0.38596,117080.0,117070.0,0.52970662]
[1754717685456,0.64626634,117080.0,117070.0,0.52970662]
[1754717686655,0.64626634,117080.0,117070.0,0.26940028]
[1754717686846,0.64626634,117080.0,117070.0,0.52970662]
[1754717687247,0.64626634,117080.0,117070.0,0.26940028]
[1754717687447,0.64626634,117080.0,117070.0,0.52970662]
[1754717687957,0.64626634,117080.0,117070.0,0.26940028]
[1754717688158,0.38596,117080.0,117070.0,0.26940028]
[1754717688455,0.64626634,117080.0,117070.0,0.52970662]
[1754717688659,0.38596,117080.0,117070.0,0.52970662]
[1754717689050,0.64626634,117080.0,117070.0,0.52970662]
[1754717689757,0.38596,117080.0,117070.0,0.52970662]
[1754717689957,0.64626634,117080.0,117070.0,0.52970662]
[1754717690252,0.64626634,117080.0,117070.0,0.26940028]
[1754717690459,0.64626634,117080.0,117070.0,0.52970662]
[1754717691365,0.64626634,117080.0,117070.0,0.26940028]
[1754717691854,0.73167124,117080.0,117070.0,0.52970662]
[1754717692061,0.99197758,117080.0,117070.0,0.52970662]
[1754717692258,0.99197758,117080.0,117070.0,0.26940028]
[1754717692462,0.90657268,117080.0,117070.0,0.52970662]
[1754717692756,0.38596,117080.0,117070.0,0.52970662]
[1754717693557,0.64626634,117080.0,117070.0,0.52970662]
[1754717694957,0.38596,117080.0,117070.0,0.26940028]
[1754717695260,0.64626634,117080.0,117070.0,0.46883824]
[1754717695656,0.64626634,117080.0,117070.0,0.2085319]
[1754717695857,0.64626634,117080.0,117070.0,0.46883824]
[1754717696060,0.38596,117080.0,117070.0,0.46883824]
[1754717696262,0.38596,117080.0,117070.0,0.2085319]
[1754717696562,0.90657268,117080.0,117070.0,0.2085319]
[1754717696963,0.90657268,117080.0,117070.0,0.46883824]
[1754717697164,0.38596,117080.0,117070.0,0.46883824]
[1754717697364,0.90657268,117080.0,117070.0,0.46883824]
[1754717697558,0.64626634,117080.0,117070.0,0.46883824]
[1754717697754,0.28546634,117080.0,117070.0,0.46883824]
[1754717698362,0.28546634,117080.0,117070.0,0.2085319]
[1754717698666,0.28546634,117080.0,117070.0,0.46883824]
[1754717698964,0.54577268,117080.0,117070.0,0.46883824]
[1754717699165,0.54577268,117080.0,117070.0,0.52970662]
[1754717700258,0.90657268,117080.0,117070.0,0.26940028]
[1754717700464,0.54577268,117080.0,117070.0,0.52970662]
[1754717700764,0.90657268,117080.0,117070.0,0.52970662]
[1754717701068,0.54577268,117080.0,117070.0,0.52970662]
[1754717701565,0.54577268,117080.0,117070.0,0.26940028]
[1754717702067,0.28546634,117080.0,117070.0,0.52970662]
[1754717702565,0.02516,117080.0,117070.0,0.26940028]
[1754717702767,0.02516,117080.0,117070.0,0.52970662]
[1754717702970,0.28546634,117080.0,117070.0,0.52970662]
[1754717703263,0.54577268,117080.0,117070.0,0.52970662]
[1754717703465,0.54577268,117080.0,117070.0,0.26940028]
[1754717703666,0.54577268,117080.0,117070.0,0.52970662]
[1754717704154,0.28546634,117080.0,117070.0,0.26940028]
[1754717704361,0.28546634,117080.0,117070.0,0.52970662]